bitfinex/quotes_SOLUSD_20251018
["timestamp","ask_amount","ask_price","bid_price","bid_amount"]
[1760811073739,0.7,185.87,185.84,6.06097287]
[1760811074435,0.7,185.87,185.84,5.38097287]
[1760811074633,0.7,185.87,185.83,5.38126244]
[1760811074940,0.7,185.87,185.83,6.06126244]
[1760811076547,4.16286024,185.88,185.85,5.38068334]
[1760811076949,3.46286024,185.88,185.85,5.38068334]
[1760811077148,0.7,185.87,185.85,5.38068334]
[1760811079150,4.16286024,185.86,185.82,16.37904813]
[1760811079344,3.46286024,185.84,185.82,0.2]
[1760811079534,3.46286024,185.83,185.82,0.2]
[1760811079840,4.16286024,185.83,185.82,0.2]
[1760811081448,18.66649551,185.83,185.82,0.2]
[1760811082435,24.04775795,185.83,185.82,0.2]
[1760811083757,24.04775795,185.83,185.78,0.2]
[1760811083954,3.46286024,185.79,185.78,0.2]
[1760811084437,4.16286024,185.79,185.78,0.2]
[1760811085351,37.91933545,185.79,185.78,0.2]
[1760811087158,43.30175646,185.79,185.78,0.2]
[1760811089657,37.91933545,185.79,185.78,0.2]
[1760811094360,43.30175646,185.79,185.78,0.2]
[1760811094751,37.91933545,185.79,185.78,0.2]
[1760811094950,37.21933545,185.79,185.78,0.2]
[1760811095150,26.34286024,185.79,185.78,0.2]
[1760811098657,26.34286024,185.79,185.78,0.88]
[1760811099269,26.34286024,185.79,185.78,0.2]
[1760811100272,27.04286024,185.79,185.78,0.2]
[1760811101958,26.34286024,185.79,185.78,0.2]
[1760811103583,26.99286024,185.79,185.78,0.2]
[1760811106481,22.88,185.79,185.78,0.2]
[1760811106676,22.88,185.79,185.78,0.89]
[1760811106983,26.34286024,185.79,185.78,0.2]
[1760811107684,26.34286024,185.79,185.78,0.89]
[1760811108268,3.46286024,185.79,185.78,0.89]
[1760811108581,3.46286024,185.79,185.78,0.2]
[1760811110079,3.46286024,185.79,185.78,0.89]
[1760811111995,3.46286024,185.79,185.78,0.2]
[1760811112171,3.46286024,185.79,185.78,0.89]
[1760811112372,3.46286024,185.79,185.78,0.2]
[1760811115970,26.99286024,185.79,185.78,0.2]
[1760811116195,37.86933545,185.79,185.78,0.2]
[1760811117381,46.7146167,185.79,185.78,0.2]
[1760811117581,45.4108259,185.79,185.78,0.2]
[1760811117788,43.25175646,185.79,185.78,0.2]
[1760811118777,50.33413206,185.79,185.74,0.2]
[1760811119084,3.46286024,185.75,185.74,0.2]
[1760811121206,3.46286024,185.75,185.74,0.89]
[1760811121802,3.46286024,185.75,185.74,0.2]
[1760811121978,3.46286024,185.75,185.74,0.89]
[1760811125091,3.46286024,185.76,185.74,0.89]
[1760811125291,3.46286024,185.76,185.75,0.69]
[1760811126098,105.56286024,185.77,185.75,0.69]
[1760811127297,3.46286024,185.76,185.75,0.69]
[1760811132304,3.46286024,185.76,185.74,6.29386148]
[1760811133707,3.46286024,185.76,185.74,5.58386148]
[1760811133909,3.46286024,185.76,185.75,0.66]
[1760811134505,3.46286024,185.76,185.74,6.24386148]
[1760811135008,3.46286024,185.76,185.74,5.58386148]
[1760811135386,3.46286024,185.76,185.75,0.66]
[1760811135790,3.46286024,185.76,185.74,5.58386148]
[1760811135991,3.46286024,185.76,185.74,6.24386148]
[1760811136512,102.1,185.77,185.75,0.66]
[1760811136716,105.56286024,185.77,185.76,0.66]
[1760811137384,0.66,185.81,185.76,6.04329026]
[1760811137583,3.46286024,185.8,185.77,0.66]
[1760811137994,7.09635212,185.81,185.77,0.66]
[1760811138198,3.46286024,185.81,185.77,0.66]
[1760811139099,3.46286024,185.81,185.78,5.38271073]
[1760811139305,7.09472616,185.82,185.79,0.66]
[1760811139909,7.75472616,185.82,185.79,0.66]
[1760811140105,3.46286024,185.81,185.79,0.66]
[1760811141813,3.46286024,185.81,185.77,6.04299353]
[1760811142015,3.46286024,185.81,185.78,0.66]
[1760811143201,3.46286024,185.81,185.78,6.042513]
[1760811144322,4.12286024,185.82,185.78,6.042513]
[1760811144828,3.46286024,185.81,185.78,6.042513]
[1760811146121,4.12286024,185.81,185.78,6.042513]
[1760811147432,3.46286024,185.8,185.78,0.66]
[1760811147736,3.46286024,185.79,185.74,0.2]
[1760811147902,3.46286024,185.75,185.74,0.2]
[1760811148102,4.12286024,185.75,185.74,0.2]
[1760811148511,3.46286024,185.75,185.74,0.2]
[1760811148721,22.88,185.78,185.74,0.2]
[1760811148722,3.46286024,185.76,185.74,0.2]
[1760811149704,4.12286024,185.76,185.74,0.2]
[1760811149903,4.12286024,185.75,185.74,0.2]
[1760811151645,3.46286024,185.75,185.74,0.2]
[1760811152609,0.66,185.76,185.74,0.2]
[1760811152813,3.46286024,185.76,185.74,0.86]
[1760811153228,3.46286024,185.76,185.74,0.2]
[1760811153433,3.46286024,185.78,185.75,0.66]
[1760811154127,22.88,185.79,185.74,5.58386121]
[1760811154128,4.12286024,185.77,185.74,5.58386121]
[1760811154338,4.12286024,185.76,185.74,5.58386121]
[1760811156212,3.46286024,185.76,185.74,5.58386121]
[1760811156412,3.46286024,185.77,185.74,6.24386121]
[1760811156645,4.12286024,185.77,185.74,6.24386121]
[1760811157140,4.12286024,185.76,185.74,0.2]
[1760811158650,3.46286024,185.77,185.74,6.24382834]
[1760811158950,4.12286024,185.77,185.74,6.24382834]
[1760811161437,3.46286024,185.77,185.74,6.24382834]
[1760811161635,4.12286024,185.77,185.74,5.58382834]
[1760811161836,4.12286024,185.77,185.74,6.24382834]
[1760811162150,4.12286024,185.77,185.74,5.58382834]
[1760811162350,3.46286024,185.76,185.74,5.58382834]
[1760811163340,4.12286024,185.76,185.74,0.2]
[1760811164860,0.66,185.76,185.74,0.2]
[1760811165158,4.12286024,185.76,185.74,0.2]
[1760811165536,3.46286024,185.75,185.74,0.2]
[1760811165961,4.12286024,185.75,185.74,0.2]
[1760811167349,3.46286024,185.75,185.74,0.2]
[1760811167842,4.12286024,185.76,185.74,0.2]
[1760811168238,3.46286024,185.78,185.75,0.72]
[1760811168443,3.46286024,185.78,185.74,5.58384426]
[1760811168740,22.88,185.79,185.76,0.72]
[1760811168741,26.34286024,185.79,185.76,0.72]
[1760811168941,102.1,185.78,185.76,0.72]
[1760811170258,102.1,185.78,185.76,6.1031638]
[1760811170856,102.1,185.78,185.76,5.3831638]
[1760811171048,102.1,185.78,185.77,0.72]
[1760811172059,102.1,185.78,185.77,6.10300048]
[1760811172970,102.1,185.78,185.75,3.46286024]
[1760811172971,102.1,185.78,185.76,6.10321133]
[1760811173148,106.22286024,185.78,185.75,5.38349756]
[1760811173337,106.22286024,185.78,185.75,6.10349756]
[1760811173545,105.56286024,185.78,185.75,6.10349756]
[1760811174166,102.1,185.78,185.75,6.10349756]
[1760811174554,105.56286024,185.78,185.75,6.10349756]
[1760811174867,106.22286024,185.78,185.75,6.10349756]
[1760811175080,105.56286024,185.78,185.75,5.38349756]
[1760811175277,4.12286024,185.77,185.75,5.38349756]
[1760811175492,102.1,185.78,185.75,5.38349756]
[1760811175775,3.46286024,185.77,185.75,5.38349756]
[1760811179661,102.1,185.78,185.75,5.38349756]
[1760811179860,3.46286024,185.77,185.75,5.38349756]
[1760811180768,106.22286024,185.78,185.75,6.10349756]
[1760811180965,102.1,185.78,185.76,0.72]
[1760811181475,102.1,185.78,185.77,0.72]
[1760811182265,102.1,185.78,185.77,6.10300048]
[1760811183156,102.76,185.78,185.77,5.38300048]
[1760811183471,102.1,185.78,185.77,5.38300048]
[1760811184271,102.1,185.78,185.77,6.10300048]
[1760811188383,102.1,185.78,185.77,9.56586072]
[1760811188574,95.36092089,185.78,185.77,9.56586072]
[1760811188777,95.36092089,185.78,185.77,6.10300048]
[1760811189160,4.17286024,185.81,185.77,6.10300048]
[1760811190691,3.46286024,185.8,185.77,6.10300048]
[1760811191593,4.17286024,185.81,185.77,6.10300048]
[1760811191891,4.17286024,185.81,185.77,5.38300048]
[1760811192089,4.17286024,185.81,185.78,6.09249901]
[1760811195504,3.46286024,185.79,185.76,5.38300416]
[1760811195796,3.46286024,185.77,185.74,0.2]
[1760811195961,3.46286024,185.76,185.74,0.2]
[1760811196167,4.16286024,185.76,185.74,0.2]
[1760811197096,3.46286024,185.77,185.74,0.2]
[1760811197471,4.16286024,185.77,185.74,5.5837966]
[1760811200465,4.16286024,185.78,185.74,5.5837966]
[1760811200786,3.46286024,185.78,185.75,0.65]
[1760811201190,3.46286024,185.78,185.76,0.65]
[1760811201370,95.36092089,185.79,185.75,0.65]
[1760811201561,3.46286024,185.78,185.75,6.03342069]
[1760811201984,4.16286024,185.78,185.75,6.03342069]
[1760811202187,4.16286024,185.78,185.75,5.38342069]
[1760811202578,3.46286024,185.78,185.75,6.03342069]
[1760811203687,95.36092089,185.79,185.76,0.65]
[1760811203984,0.7,185.78,185.75,5.38342069]
[1760811204188,4.16286024,185.78,185.75,6.03342069]
[1760811204377,3.46286024,185.78,185.75,6.03342069]
[1760811206292,96.06092089,185.79,185.76,0.65]
[1760811206293,98.82378113,185.79,185.76,0.65]
[1760811207088,95.36092089,185.79,185.77,0.65]
[1760811207394,95.36092089,185.79,185.77,5.38272248]
[1760811207688,95.36092089,185.79,185.77,6.03272248]
[1760811208899,95.36092089,185.79,185.78,0.65]
[1760811209476,95.36092089,185.79,185.76,0.65]
[1760811210380,95.36092089,185.79,185.75,18.84253028]
[1760811210677,3.46286024,185.78,185.75,5.38358008]
[1760811210887,3.46286024,185.78,185.76,6.03315919]
[1760811211497,3.46286024,185.78,185.76,22.21919064]
[1760811211998,99.52378113,185.79,185.76,22.21919064]
[1760811215002,99.52378113,185.79,185.76,21.56919064]
[1760811215206,3.46286024,185.77,185.74,0.2]
[1760811215501,3.46286024,185.75,185.74,0.2]
[1760811215988,4.16286024,185.75,185.74,0.2]
[1760811217379,3.46286024,185.75,185.74,0.2]
[1760811217793,95.36092089,185.78,185.74,6.23386992]
[1760811218008,95.36092089,185.78,185.75,0.65]
[1760811218181,98.82378113,185.78,185.75,0.65]
[1760811218386,98.82378113,185.78,185.75,10.54750188]
[1760811218998,98.82378113,185.78,185.76,5.38329026]
[1760811219205,98.82378113,185.78,185.76,6.03329026]
[1760811219391,98.82378113,185.78,185.76,5.38329026]
[1760811219998,95.36092089,185.78,185.77,0.65]
[1760811220600,3.46286024,185.79,185.77,0.65]
[1760811220906,3.46286024,185.79,185.77,10.54750188]
[1760811221092,3.46286024,185.79,185.77,15.93041074]
[1760811221509,3.46286024,185.79,185.77,6.03290886]
[1760811222006,3.46286024,185.8,185.78,15.93041074]
[1760811222996,3.46286024,185.8,185.78,16.58041074]
[1760811223201,3.46286024,185.81,185.78,21.9631131]
[1760811223509,7.09267201,185.81,185.78,21.9631131]
[1760811223699,3.46286024,185.81,185.78,21.9631131]
[1760811224800,3.46286024,185.81,185.78,6.03270236]
[1760811225001,3.46286024,185.81,185.79,16.84603145]
[1760811225385,3.46286024,185.81,185.79,0.66]
[1760811225809,3.46286024,185.81,185.8,16.18428505]
[1760811225996,3.46286024,185.81,185.8,16.84428505]
[1760811228209,95.36092089,185.84,185.8,22.22641637]
[1760811228413,98.82378113,185.84,185.81,0.66]
[1760811229007,98.82378113,185.84,185.82,16.183412]
[1760811229227,98.82378113,185.84,185.82,16.843412]
[1760811229228,95.36092089,185.84,185.82,16.843412]
[1760811229512,95.36092089,185.84,185.82,22.2249482]
[1760811230791,95.36092089,185.84,185.82,6.0415362]
[1760811231100,98.82378113,185.84,185.83,16.18253904]
[1760811232320,99.51378113,185.84,185.83,16.18253904]
[1760811232613,99.51378113,185.84,185.79,5.38230986]
[1760811232808,3.46286024,185.82,185.81,16.18253904]
[1760811236307,3.46286024,185.82,185.81,21.5643807]
[1760811240016,3.46286024,185.82,185.75,6.04341585]
[1760811240017,22.88,185.81,185.75,6.04341585]
[1760811240199,3.46286024,185.78,185.77,16.18690479]
[1760811241399,4.15286024,185.78,185.77,16.18690479]
[1760811242006,4.15286024,185.78,185.74,0.2]
[1760811242203,22.88,185.81,185.74,0.2]
[1760811242204,3.46286024,185.75,185.74,0.2]
[1760811242814,3.46286024,185.75,185.74,5.58390468]
[1760811243717,3.46286024,185.77,185.74,11.6277746]
[1760811243905,3.46286024,185.79,185.75,0.66]
[1760811244307,3.46286024,185.79,185.76,10.87647521]
[1760811244505,3.46286024,185.79,185.77,0.66]
[1760811245109,4.15286024,185.79,185.77,10.87647521]
[1760811245321,4.15286024,185.78,185.77,10.87647521]
[1760811245509,4.15286024,185.78,185.74,5.58379057]
[1760811245815,0.69,185.77,185.76,10.87647521]
[1760811246004,0.69,185.79,185.76,10.87647521]
[1760811246923,3.46286024,185.78,185.76,10.87647521]
[1760811248100,0.67,185.82,185.77,0.71]
[1760811248322,3.46286024,185.83,185.78,3.46286024]
[1760811248525,3.46286024,185.82,185.79,0.71]
[1760811248716,3.46286024,185.81,185.77,0.71]
[1760811248916,3.46286024,185.81,185.76,18.84139093]
[1760811249127,3.46286024,185.81,185.78,16.89428505]
[1760811249328,3.46286024,185.8,185.78,22.2769161]
[1760811249627,3.46286024,185.82,185.79,0.71]
[1760811250406,3.46286024,185.81,185.79,0.71]
[1760811250611,3.46286024,185.8,185.79,0.71]
[1760811251324,3.46286024,185.8,185.78,16.18428505]
[1760811251624,3.62314788,185.83,185.81,22.88]
[1760811251806,3.46286024,185.83,185.81,0.71]
[1760811252429,95.36092089,185.84,185.81,6.09183176]
[1760811252826,95.36092089,185.84,185.82,16.183412]
[1760811257636,95.36092089,185.84,185.82,21.56492074]
[1760811257836,95.36092089,185.84,185.82,22.26492074]
[1760811258015,95.36092089,185.84,185.82,6.08150874]
[1760811258215,95.36092089,185.84,185.83,16.18253904]
[1760811259822,95.36092089,185.84,185.83,22.26380148]
[1760811260635,95.36092089,185.84,185.83,25.72666172]
[1760811264339,95.36092089,185.84,185.83,22.26380148]
[1760811265331,95.36092089,185.84,185.83,21.56380148]
[1760811268831,95.36092089,185.84,185.83,16.18253904]
[1760811268832,96.04092089,185.84,185.83,16.18253904]
[1760811269030,99.50378113,185.84,185.78,5.38249758]
[1760811269226,33.75647521,185.89,185.75,14.15824906]
[1760811269227,3.46286024,185.81,185.75,14.15824906]
[1760811269427,3.46286024,185.8,185.79,16.18603145]
[1760811269751,4.14286024,185.8,185.79,16.18603145]
[1760811270134,4.14286024,185.8,185.74,0.9]
[1760811270339,3.46286024,185.79,185.75,16.18777822]
[1760811270739,3.46286024,185.79,185.75,16.88777822]
[1760811270740,4.14286024,185.79,185.75,16.88777822]
[1760811271142,4.14286024,185.79,185.75,0.7]
[1760811271453,4.14286024,185.79,185.76,16.18777822]
[1760811271637,4.14286024,185.78,185.75,5.38345851]
[1760811271828,3.46286024,185.79,185.75,5.38345851]
[1760811272148,3.46286024,185.76,185.74,0.2]
[1760811272850,4.14286024,185.76,185.74,0.2]
[1760811275054,4.14286024,185.75,185.74,0.2]
[1760811276159,0.68,185.75,185.74,0.2]
[1760811277336,3.46286024,185.76,185.74,0.2]
[1760811277555,4.14286024,185.76,185.74,0.2]
[1760811280451,3.46286024,185.76,185.74,0.2]
[1760811280653,3.46286024,185.8,185.75,0.7]
[1760811280860,0.68,185.8,185.75,3.46286024]
[1760811281041,0.68,185.8,185.76,0.7]
[1760811281234,0.68,185.8,185.77,0.7]
[1760811281441,3.46286024,185.81,185.77,0.7]
[1760811281642,4.14286024,185.81,185.77,0.7]
[1760811282049,3.46286024,185.81,185.77,0.7]
[1760811282253,0.68,185.8,185.77,0.7]
[1760811283042,3.46286024,185.81,185.77,0.7]
[1760811283360,4.15286024,185.8,185.74,3.66286024]
[1760811283562,4.15286024,185.79,185.74,0.2]
[1760811283859,4.15286024,185.79,185.74,5.58383613]
[1760811284051,0.69,185.78,185.74,5.58383613]
[1760811284255,3.46286024,185.76,185.74,0.2]
[1760811284463,4.15286024,185.75,185.74,0.2]
[1760811284852,3.46286024,185.75,185.74,0.2]
[1760811285249,3.46286024,185.76,185.74,0.2]
[1760811285763,3.46286024,185.75,185.74,0.2]
[1760811288167,3.46286024,185.76,185.74,0.91]
[1760811289272,3.46286024,185.76,185.74,0.2]
[1760811289463,96.05092089,185.78,185.74,0.2]
[1760811289464,3.46286024,185.75,185.74,0.2]
[1760811289663,4.15286024,185.75,185.74,0.2]
[1760811291958,3.46286024,185.75,185.74,0.2]
[1760811296157,3.46286024,185.75,185.74,0.91]
[1760811297167,3.46286024,185.76,185.74,0.91]
[1760811297874,3.46286024,185.76,185.74,0.2]
[1760811298376,3.46286024,185.76,185.74,0.91]
[1760811298577,3.46286024,185.76,185.74,0.2]
[1760811299277,3.46286024,185.76,185.74,0.91]
[1760811299454,4.15286024,185.77,185.74,0.91]
[1760811299658,3.46286024,185.75,185.74,0.2]
[1760811300378,3.46286024,185.76,185.74,0.2]
[1760811300676,4.15286024,185.76,185.74,0.2]
[1760811300979,3.46286024,185.76,185.74,0.2]
[1760811301287,3.46286024,185.77,185.75,0.71]
[1760811301483,0.69,185.82,185.76,4.17286024]
[1760811301780,6.42782402,185.83,185.77,4.17286024]
[1760811301958,2.8145085,185.83,185.78,0.71]
[1760811302277,3.46286024,185.81,185.78,0.71]
[1760811302579,4.15286024,185.82,185.78,0.71]
[1760811302963,3.46286024,185.82,185.79,0.71]
[1760811303560,96.05092089,185.84,185.79,0.71]
[1760811303561,3.46286024,185.83,185.79,0.71]
[1760811303870,4.15286024,185.83,185.79,0.71]
[1760811304271,3.46286024,185.82,185.79,0.71]
[1760811305064,3.46286024,185.81,185.78,0.71]
[1760811305669,3.46286024,185.81,185.79,0.71]
[1760811306862,3.46286024,185.81,185.74,13.65900457]
[1760811307064,95.36092089,185.84,185.75,0.72]
[1760811307065,3.46286024,185.79,185.75,0.72]
[1760811307275,3.46286024,185.79,185.76,0.72]
[1760811307574,95.36092089,185.82,185.76,0.72]
[1760811307757,3.46286024,185.81,185.76,4.18286024]
[1760811307957,3.46286024,185.81,185.77,0.72]
[1760811308373,3.46286024,185.8,185.77,0.72]
[1760811308760,3.46286024,185.8,185.77,6.10271538]
[1760811308960,3.46286024,185.8,185.77,5.38271538]
[1760811309376,3.46286024,185.8,185.78,0.72]
[1760811309679,3.46286024,185.8,185.77,5.38271538]
[1760811309680,3.46286024,185.81,185.79,0.72]
[1760811309884,98.82378113,185.82,185.8,0.72]
[1760811310376,3.46286024,185.81,185.78,0.72]
[1760811310568,3.46286024,185.8,185.78,0.72]
[1760811310769,3.46286024,185.8,185.78,6.10269346]
[1760811310966,3.46286024,185.79,185.74,0.2]
[1760811311170,3.46286024,185.79,185.75,0.72]
[1760811311374,3.46286024,185.79,185.76,0.72]
[1760811312086,3.46286024,185.79,185.77,0.72]
[1760811312863,3.46286024,185.8,185.78,0.72]
[1760811313272,3.46286024,185.8,185.77,5.38293494]
[1760811313581,3.46286024,185.8,185.77,6.10293494]
[1760811313786,4.15286024,185.81,185.77,5.38293494]
[1760811313985,95.36092089,185.82,185.78,0.72]
[1760811314294,98.82378113,185.82,185.79,0.72]
[1760811314763,98.82378113,185.82,185.76,16.92042389]
[1760811314764,3.46286024,185.8,185.76,18.84085391]
[1760811314964,3.46286024,185.8,185.77,0.72]
[1760811315159,3.46286024,185.8,185.78,0.72]
[1760811315363,3.46286024,185.81,185.76,22.30371415]
[1760811315591,96.05092089,185.82,185.77,4.18286024]
[1760811315592,95.36092089,185.82,185.77,4.18286024]
[1760811315972,95.36092089,185.82,185.78,0.72]
[1760811316170,98.82378113,185.82,185.78,0.72]
[1760811316398,95.36092089,185.82,185.79,3.46286024]
[1760811316692,95.36092089,185.82,185.8,0.72]
[1760811316892,95.36092089,185.82,185.8,6.10187406]
[1760811317074,95.36092089,185.82,185.81,0.72]
[1760811317987,95.36092089,185.82,185.81,6.10184166]
[1760811322194,3.46286024,185.84,185.81,6.10184166]
[1760811327488,3.46286024,185.82,185.79,5.3823446]
[1760811327804,3.46286024,185.8,185.78,0.72]
[1760811327988,3.46286024,185.85,185.78,5.38267039]
[1760811327989,3.46286024,185.79,185.78,5.38267039]
[1760811328487,3.46286024,185.79,185.77,6.10298633]
[1760811328688,95.36092089,185.84,185.78,4.18286024]
[1760811328892,95.36092089,185.84,185.8,3.46286024]
[1760811329087,95.36092089,185.84,185.81,0.72]
[1760811329287,95.36092089,185.84,185.81,5.38184166]
[1760811329490,95.36092089,185.84,185.82,0.72]
[1760811329691,95.36092089,185.84,185.83,0.72]
[1760811330295,3.46286024,185.86,185.83,0.72]
[1760811330493,4.15286024,185.86,185.81,18.83644582]
[1760811330703,3.46286024,185.85,185.82,0.72]
[1760811331211,3.46286024,185.85,185.83,5.38126244]
[1760811333102,3.46286024,185.85,185.82,6.10153843]
[1760811333402,3.46286024,185.83,185.82,5.38153843]
[1760811334801,3.46286024,185.85,185.82,6.10153843]
[1760811335002,3.46286024,185.85,185.82,5.38153843]
[1760811335210,3.46286024,185.85,185.83,0.72]
[1760811335797,3.46286024,185.85,185.81,5.38184166]
[1760811335798,3.46286024,185.86,185.81,8.8447019]
[1760811336085,9.90613109,185.93,185.81,8.8447019]
[1760811336086,4.15286024,185.92,185.85,3.46286024]
[1760811336313,3.46286024,185.92,185.86,4.18286024]
[1760811336492,3.46286024,185.93,185.87,4.18286024]
[1760811336691,3.46286024,185.93,185.88,0.72]
[1760811336892,0.69,185.93,185.89,0.72]
[1760811337099,0.69,185.93,185.9,5.37923614]
[1760811337306,4.15286024,185.93,185.9,5.37923614]
[1760811337896,4.15286024,185.92,185.89,5.37946648]
[1760811338298,3.46286024,185.92,185.89,5.37946648]
[1760811338508,3.46286024,185.92,185.89,6.09946648]
[1760811338703,3.46286024,185.93,185.89,6.09946648]
[1760811339494,4.15286024,185.93,185.89,6.09946648]
[1760811339712,3.46286024,185.93,185.9,0.72]
[1760811340718,4.15286024,185.94,185.9,0.72]
[1760811340916,0.69,185.93,185.9,0.72]
[1760811341298,4.15286024,185.93,185.9,0.72]
[1760811341704,0.69,185.93,185.9,0.72]
[1760811341999,0.69,185.92,185.89,5.37946648]
[1760811342193,3.46286024,185.93,185.89,5.37946648]
[1760811342415,0.69,185.92,185.89,6.09946648]
[1760811342622,0.69,185.92,185.89,5.37946648]
[1760811343315,3.46286024,185.93,185.89,6.09946648]
[1760811343522,0.69,185.92,185.89,6.09946648]
[1760811343899,3.46286024,185.93,185.89,6.09946648]
[1760811344099,4.15286024,185.93,185.89,5.37946648]
[1760811344516,4.15286024,185.93,185.9,0.71]
[1760811345401,0.69,185.93,185.9,0.71]
[1760811346426,98.82378113,185.94,185.9,6.08919673]
[1760811346606,99.51378113,185.94,185.9,6.08919673]
[1760811347317,95.36092089,185.94,185.9,5.37919673]
[1760811347504,95.36092089,185.94,185.91,0.71]
[1760811347698,95.36092089,185.94,185.9,5.37919673]
[1760811348002,95.36092089,185.94,185.91,0.71]
[1760811348924,95.36092089,185.94,185.91,6.08882487]
[1760811349417,95.36092089,185.94,185.92,0.71]
[1760811349623,95.36092089,185.94,185.91,6.08882487]
[1760811353125,96.05092089,185.94,185.91,6.08882487]
[1760811353429,96.05092089,185.94,185.91,5.37882487]
[1760811355709,96.05092089,185.94,185.91,8.84168511]
[1760811356527,96.05092089,185.94,185.91,5.37882487]
[1760811357214,96.05092089,185.94,185.91,0.71]
[1760811358114,96.05092089,185.94,185.91,6.08880591]
[1760811358621,96.05092089,185.94,185.91,5.37880591]
[1760811359525,0.69,185.93,185.91,5.37880591]
[1760811359837,95.36092089,185.94,185.91,0.71]
[1760811360225,95.36092089,185.94,185.92,4.17286024]
[1760811360533,95.36092089,185.94,185.91,0.71]
[1760811360712,95.36092089,185.94,185.91,4.17286024]
[1760811361340,95.36092089,185.94,185.9,38.46312941]
[1760811361516,95.36092089,185.94,185.91,4.17286024]
[1760811361717,95.36092089,185.94,185.92,5.37865748]
[1760811363316,95.36092089,185.94,185.93,0.71]
[1760811363728,95.36092089,185.94,185.93,6.0883682]
[1760811365444,95.36092089,185.94,185.93,5.3783682]
[1760811365615,95.36092089,185.94,185.92,3.46286024]
[1760811365616,95.36092089,185.94,185.92,5.37865748]
[1760811366118,0.69,185.93,185.91,5.37890745]
[1760811366430,96.05092089,185.94,185.91,5.37890745]
[1760811367814,95.36092089,185.94,185.91,5.37890745]
[1760811368021,95.36092089,185.94,185.92,4.15286024]
[1760811368244,0.1,185.95,185.93,0.69]
[1760811368644,0.1,185.95,185.93,4.15286024]
[1760811368840,0.1,185.95,185.94,0.69]
[1760811369143,0.1,185.95,185.93,4.15286024]
[1760811370048,0.1,185.95,185.94,5.37807895]
[1760811370452,0.1,185.95,185.93,4.15286024]
[1760811370453,0.8,185.95,185.9,4.15286024]
[1760811370628,0.8,185.95,185.91,0.69]
[1760811370941,0.8,185.95,185.91,16.17119909]
[1760811371135,0.1,185.95,185.92,0.69]
[1760811371525,0.1,185.95,185.94,22.88]
[1760811372630,0.1,185.95,185.94,28.25807895]
[1760811373547,0.1,185.95,185.94,22.88]
[1760811375729,0.1,185.95,185.93,5.37834848]
[1760811376046,0.1,185.95,185.93,0.66]
[1760811377150,0.1,185.95,185.93,6.03816199]
[1760811378622,0.1,185.95,185.94,0.66]
[1760811378829,0.1,185.95,185.94,4.12286024]
[1760811380328,0.1,185.95,185.94,6.27867149]
[1760811380535,0.1,185.95,185.94,34.53675044]
[1760811391460,0.1,185.95,185.94,30.4138902]
[1760811391643,0.76,185.95,185.91,36.327367]
[1760811391844,0.66,185.94,185.92,5.37865748]
[1760811392156,0.66,185.94,185.92,8.84151772]
[1760811392345,0.1,185.95,185.92,5.37865748]
[1760811392544,0.76,185.95,185.92,5.37865748]
[1760811392749,0.76,185.95,185.93,3.46286024]
[1760811393843,0.76,185.95,185.94,5.37807895]
[1760811394574,0.76,185.95,185.94,8.84093919]
[1760811395851,0.1,185.95,185.94,8.84093919]
[1760811400162,0.1,185.95,185.94,12.96379943]
[1760811400361,0.1,185.95,185.94,8.84093919]
[1760811402653,0.1,185.95,185.94,9.50093919]
[1760811402856,0.1,185.95,185.94,12.96379943]
[1760811403470,0.1,185.95,185.94,9.50093919]
[1760811404557,0.1,185.95,185.94,12.96379943]
[1760811404757,0.1,185.95,185.94,9.50093919]
[1760811408658,0.1,185.95,185.94,12.96379943]
[1760811410373,0.1,185.95,185.94,9.50093919]
[1760811412677,0.1,185.95,185.94,9.00093919]
[1760811413456,0.1,185.95,185.94,12.46379943]
[1760811413686,0.1,185.97,185.96,22.88]
[1760811413870,0.1,185.97,185.96,26.34286024]
[1760811414063,0.1,185.97,185.96,27.01286024]
[1760811414263,0.1,185.97,185.96,43.17970204]
[1760811414980,0.1,185.97,185.96,70.31970204]